bitfinex/quotes_ETHUSD_20241109
["timestamp","ask_amount","ask_price","bid_price","bid_amount"]
[1731171234756,0.03162547,3032.6,3031.9,0.06595672]
[1731171235342,0.03162547,3032.6,3032.0,1.26844921]
[1731171235543,0.03162547,3032.6,3032.2,1.26844921]
[1731171236096,0.03162547,3032.6,3032.4,1.26844921]
[1731171236455,0.808,3032.9,3032.4,1.26844921]
[1731171236869,0.03177689,3032.8,3032.4,1.26844921]
[1731171237038,0.03177689,3032.8,3031.8,3.0]
[1731171237039,0.03177689,3032.8,3031.9,0.55]
[1731171237238,0.03177689,3032.8,3032.1,0.55]
[1731171237456,0.03177689,3032.8,3032.2,1.26844921]
[1731171239491,0.03177689,3032.8,3031.8,0.8273]
[1731171239791,0.03177689,3032.8,3032.0,1.26844921]
[1731171240006,0.808,3032.7,3032.0,1.9381256]
[1731171240423,0.808,3032.5,3031.6,0.34376348]
[1731171240598,0.808,3032.5,3031.7,0.55]
[1731171240910,0.808,3032.3,3031.7,0.55]
[1731171241108,4.26844921,3032.8,3031.7,0.55]
[1731171241109,0.03356635,3032.2,3031.7,0.55]
[1731171241270,0.808,3032.1,3031.7,0.55]
[1731171241609,0.03340548,3032.0,3031.7,0.55]
[1731171241811,0.03340548,3032.0,3031.2,0.99975541]
[1731171242020,0.808,3031.9,3031.2,0.34372168]
[1731171242309,0.03102828,3031.8,3031.2,0.34372168]
[1731171242523,0.808,3031.7,3031.1,1.26844921]
[1731171242678,0.03087596,3031.6,3031.1,1.26844921]
[1731171243385,0.03087596,3031.6,3030.8,0.8273]
[1731171243581,0.03087596,3031.6,3030.9,0.55]
[1731171244106,0.808,3031.7,3030.9,0.55]
[1731171244289,0.808,3031.7,3031.0,0.06597417]
[1731171245377,0.808,3031.7,3030.7,0.34378356]
[1731171245634,0.808,3031.5,3030.7,0.34378356]
[1731171245981,0.808,3031.3,3030.5,0.06598396]
[1731171246180,0.808,3031.3,3030.6,0.6627562]
[1731171246380,0.03781312,3031.2,3030.7,0.06598396]
[1731171246681,0.808,3031.3,3030.6,0.6627562]
[1731171246905,0.03781301,3031.2,3030.6,0.6627562]
[1731171247107,0.808,3031.1,3030.0,3.57575886]
[1731171247322,0.03762348,3031.0,3030.2,0.34389641]
[1731171247561,0.808,3031.0,3030.2,0.34389641]
[1731171247759,0.03752966,3030.9,3030.2,0.34389641]
[1731171248118,0.7539,3030.8,3030.1,0.65808126]
[1731171248334,0.03734043,3030.7,3030.1,0.65808126]
[1731171248960,0.7539,3030.8,3030.1,0.65808126]
[1731171249135,0.7539,3030.8,3029.8,2.74845886]
[1731171249459,0.7539,3030.8,3029.9,3.55]
[1731171249616,0.7539,3030.8,3030.0,0.06599568]
[1731171249818,0.7539,3030.8,3030.1,3.29845886]
[1731171250036,0.7539,3030.8,3030.2,0.06599045]
[1731171251786,0.7639,3032.0,3030.5,0.55]
[1731171251986,0.7639,3032.0,3030.6,0.06598063]
[1731171252140,0.7639,3032.0,3030.5,0.55]
[1731171252141,0.03296987,3031.9,3030.5,0.55]
[1731171252460,0.7539,3031.8,3030.5,0.55]
[1731171252865,0.7539,3031.6,3030.5,0.55]
[1731171253441,0.7539,3031.4,3030.5,0.55]
[1731171256411,0.7539,3031.4,3030.4,2.74845886]
[1731171256571,0.7539,3031.4,3030.3,0.7893]
[1731171257614,0.7539,3031.4,3030.3,0.55]
[1731171257812,0.03789678,3031.3,3030.3,0.55]
[1731171258109,0.7539,3031.2,3030.3,0.55]
[1731171259427,0.7539,3031.2,3030.1,0.55]
[1731171260107,0.7539,3031.2,3030.2,0.85529068]
[1731171263336,0.7539,3031.2,3030.3,2.74845886]
[1731171263544,0.7539,3031.2,3030.4,0.06599068]
[1731171264900,0.7539,3031.2,3030.3,2.74845886]
[1731171265752,0.7539,3031.2,3030.2,0.7893]
[1731171266051,0.7539,3031.2,3030.1,3.29845886]
[1731171266843,0.7539,3031.2,3030.2,0.06599069]
[1731171267350,0.7539,3031.2,3030.4,2.74845886]
[1731171267549,0.7539,3031.2,3030.5,0.7893]
[1731171267754,0.7539,3031.2,3030.6,0.06598418]
[1731171267957,0.7539,3031.2,3030.6,0.55]
[1731171268251,0.7539,3031.2,3030.7,0.06598071]
[1731171268552,0.7539,3031.2,3030.6,0.55]
[1731171268752,0.7539,3031.2,3030.7,0.06598071]
[1731171269111,0.7539,3031.2,3030.7,2.81443957]
[1731171269850,0.7539,3031.2,3030.6,0.55]
[1731171271152,0.7539,3031.2,3030.5,0.65966532]
[1731171271454,0.7539,3031.2,3030.1,2.74845886]
[1731171272335,0.7539,3031.2,3030.4,2.74845886]
[1731171273765,0.7539,3031.2,3030.2,0.66853266]
[1731171273766,0.7539,3031.2,3030.6,2.74845886]
[1731171278656,0.7539,3031.2,3030.7,0.06598088]
[1731171278860,0.7539,3031.2,3030.9,2.74845886]
[1731171279027,1.37284544,3032.4,3031.0,0.06597397]
[1731171279028,0.7875,3032.2,3031.0,0.06597397]
[1731171279233,0.30779116,3032.1,3031.0,0.06597397]
[1731171279430,0.7875,3032.0,3031.0,0.06597397]
[1731171279824,0.03296564,3031.9,3031.0,0.06597397]
[1731171280018,0.7875,3031.8,3031.0,0.06597397]
[1731171280348,0.8203867,3031.8,3031.0,0.06597397]
[1731171281459,0.8203867,3031.8,3031.0,0.55]
[1731171281665,0.8203867,3031.8,3031.2,2.74845886]
[1731171281815,0.7875,3031.8,3031.3,0.06597117]
[1731171283252,0.7875,3031.8,3031.3,0.06597119]
[1731171285149,0.7875,3031.8,3031.2,2.74845886]
[1731171293335,0.7875,3031.8,3031.4,1.26816698]
[1731171295920,0.7875,3031.8,3031.6,1.26816698]
[1731171299408,0.7875,3031.8,3031.4,1.26816698]
[1731171299836,0.7875,3031.8,3031.0,3.0]
[1731171300026,0.7875,3031.8,3031.1,1.26816698]
[1731171300457,0.05447254,3031.7,3031.1,1.26816698]
[1731171300833,0.7875,3031.8,3031.1,1.26816698]
[1731171301346,0.03631536,3031.7,3031.1,1.26816698]
[1731171301672,0.7875,3031.8,3031.1,1.26816698]
[1731171301874,0.7875,3031.8,3031.3,1.26816698]
[1731171302060,0.05447304,3031.7,3031.3,1.26816698]
[1731171302672,0.7875,3031.8,3031.3,1.26816698]
[1731171303038,0.04357843,3031.7,3031.3,1.26816698]
[1731171305673,0.80966629,3031.5,3030.8,1.26816698]
[1731171306038,0.80966629,3031.5,3030.3,3.04240869]
[1731171306039,0.80966629,3031.5,3030.5,1.26816698]
[1731171306584,0.7615,3031.3,3030.5,1.26816698]
[1731171307463,0.7615,3031.3,3030.3,2.74927491]
[1731171307666,0.7615,3031.3,3030.4,0.06599097]
[1731171308277,0.7615,3031.3,3030.3,2.74927491]
[1731171308981,0.7615,3031.3,3030.4,0.06599097]
[1731171309486,0.7615,3031.3,3030.3,2.74927491]
[1731171311183,0.7615,3031.3,3030.1,3.65223482]
[1731171311495,0.7615,3031.3,3030.1,3.71823255]
[1731171312848,0.7615,3031.3,3030.1,0.65223482]
[1731171313077,0.7846,3031.1,3029.9,0.3432741]
[1731171313589,0.7846,3031.1,3030.0,0.65068797]
[1731171316177,0.01,3031.0,3029.9,0.3432741]
[1731171316354,0.7846,3030.9,3029.7,2.74927491]
[1731171316552,0.7846,3030.9,3029.3,0.8256]
[1731171316553,0.7846,3030.9,3029.4,2.74927491]
[1731171316866,0.01,3030.8,3029.5,0.66829552]
[1731171317052,0.7846,3030.7,3029.5,0.66829552]
[1731171317393,0.7846,3030.7,3029.4,2.74927491]
[1731171325862,0.7846,3030.7,3029.3,0.55]
[1731171326206,0.7846,3030.7,3029.4,2.74927491]
[1731171326798,0.7846,3030.7,3029.7,2.74927491]
[1731171327359,0.7846,3030.7,3029.8,0.06600138]
[1731171327560,0.7846,3030.7,3029.7,2.74927491]
[1731171330398,0.7846,3030.7,3029.8,0.06600139]
[1731171330603,0.7846,3030.7,3029.7,2.74927491]
[1731171331300,0.7846,3030.7,3030.0,2.74927491]
[1731171331460,0.7846,3030.7,3030.0,3.52437491]
[1731171333488,0.7846,3030.7,3030.0,2.74927491]
[1731171336101,0.7846,3030.7,3030.1,0.06599472]
[1731171337476,0.7846,3030.7,3030.6,1.26901721]
[1731171338958,0.7533,3031.7,3030.6,1.26901721]
[1731171339163,0.7533,3031.7,3030.9,1.26901721]
[1731171339462,0.7533,3031.5,3030.5,2.74891854]
[1731171340275,0.7533,3031.5,3030.8,2.74891854]
[1731171340429,0.06387113,3031.4,3030.8,2.74891854]
[1731171340622,0.7533,3031.5,3030.8,2.74891854]
[1731171342970,0.06387113,3031.4,3030.8,2.74891854]
[1731171343372,0.7533,3031.5,3030.8,2.74891854]
[1731171343678,0.06387113,3031.4,3030.8,2.74891854]
[1731171344030,0.7533,3031.5,3030.8,2.74891854]
[1731171344231,0.7533,3031.5,3030.2,0.7751]
[1731171344232,0.81717113,3031.4,3030.5,2.74891854]
[1731171345255,0.81717113,3031.4,3030.3,3.55]
[1731171345461,0.81717113,3031.4,3030.2,2.74891854]
[1731171345771,0.81717113,3031.4,3030.3,0.06599015]
[1731171347682,0.81717113,3031.4,3030.5,2.74891854]
[1731171347854,0.81717113,3031.4,3030.6,0.06598533]
[1731171348840,0.81717113,3031.4,3030.5,2.74891854]
[1731171349272,0.7533,3031.4,3030.5,2.74891854]
[1731171349790,0.06379932,3031.3,3030.5,2.74891854]
[1731171350082,0.7533,3031.4,3030.5,2.74891854]
[1731171350590,0.784,3031.2,3030.5,2.74891854]
[1731171351744,0.784,3031.2,3030.6,0.06598355]
[1731171352050,0.784,3031.2,3030.7,0.55]
[1731171352587,0.784,3031.2,3030.6,0.55]
[1731171356285,0.784,3031.2,3030.8,2.74891854]
[1731171357004,0.784,3031.2,3030.7,0.55]
[1731171357405,0.784,3031.2,3030.2,0.65341892]
[1731171357610,0.784,3031.2,3030.3,3.0]
[1731171359419,0.784,3031.2,3030.5,1.26894334]
[1731171359708,1.27894334,3031.8,3030.5,1.26894334]
[1731171359709,0.06292327,3031.1,3030.5,1.26894334]
[1731171359867,0.784,3031.0,3030.5,1.26894334]
[1731171360269,0.06277561,3030.9,3030.5,1.26894334]
[1731171360679,0.06277561,3030.9,3030.7,1.26894334]
[1731171360881,0.784,3031.0,3030.7,1.26894334]
[1731171361090,0.06270164,3030.8,3030.7,1.26894334]
[1731171361280,0.784,3031.0,3030.7,1.26894334]
[1731171369519,0.784,3031.0,3030.2,0.65341892]
[1731171369740,0.784,3031.0,3030.3,1.26894334]
[1731171370035,1.27894334,3031.6,3030.3,1.26894334]
[1731171370036,0.7963,3030.8,3030.3,1.26894334]
[1731171370237,0.06262655,3030.7,3030.3,1.26894334]
[1731171370435,0.7963,3030.8,3030.3,1.26894334]
[1731171370744,0.06262655,3030.7,3030.3,1.26894334]
[1731171371038,0.7963,3030.8,3030.3,1.26894334]
[1731171371249,0.06262655,3030.7,3030.3,1.26894334]
[1731171371409,0.7963,3030.8,3030.5,1.26894334]
[1731171371628,0.7963,3030.8,3030.7,1.26894334]
[1731171375913,0.8589991,3030.8,3030.7,1.26894334]
[1731171376412,0.8589991,3030.8,3030.3,0.06599321]
[1731171376608,0.8589991,3030.8,3030.3,1.26894334]
[1731171376923,0.8589991,3030.8,3030.0,0.34343608]
[1731171377247,0.8589991,3030.8,3030.1,1.26894334]
[1731171378312,0.8589991,3030.8,3030.1,1.91236435]
[1731171380209,0.8589991,3030.8,3030.1,0.64342101]
[1731171380451,0.8589991,3030.8,3030.1,1.91236435]
[1731171383629,0.8589991,3030.8,3030.5,1.26894334]
[1731171391123,0.0626991,3030.8,3030.5,1.26894334]
[1731171391324,0.0626991,3030.8,3030.7,1.26894334]
[1731171391664,0.7742,3031.0,3030.7,1.26894334]
[1731171392119,0.06277227,3030.9,3030.7,1.26894334]
[1731171393759,0.06277227,3030.9,3030.5,1.26894334]
[1731171395046,0.7742,3031.0,3030.5,1.26894334]
[1731171395272,0.06277227,3030.9,3030.5,1.26894334]
[1731171395468,0.7742,3031.0,3030.5,1.26894334]
[1731171395669,0.06277227,3030.9,3030.5,1.26894334]
[1731171395859,0.7742,3031.0,3030.5,1.26894334]
[1731171396078,0.06277227,3030.9,3030.5,1.26894334]
[1731171396276,0.7742,3031.0,3030.5,1.26894334]
[1731171396592,0.06277227,3030.9,3030.5,1.26894334]
[1731171396965,0.7742,3031.0,3030.5,1.26894334]
[1731171397287,0.06277354,3030.9,3030.5,1.26894334]
[1731171397809,0.7742,3031.0,3030.5,1.26894334]
[1731171398294,0.06277354,3030.9,3030.5,1.26894334]
[1731171398885,0.7742,3031.0,3030.5,1.26894334]
[1731171399352,0.06277354,3030.9,3030.5,1.26894334]
[1731171399550,0.06277354,3030.9,3030.3,1.26894334]
[1731171399744,0.7742,3031.0,3030.3,1.26894334]
[1731171399977,0.0626997,3030.8,3030.3,1.26894334]
[1731171400188,0.06277354,3030.9,3030.3,1.26894334]
[1731171400363,0.7742,3031.0,3030.3,1.26894334]
[1731171400689,0.7742,3030.8,3030.1,1.45592101]
[1731171400873,0.7742,3030.8,3029.2,0.42108044]
[1731171400874,0.7742,3030.8,3029.4,0.55]
[1731171401083,0.06262586,3030.7,3030.0,1.26894334]
[1731171401382,1.26894334,3031.3,3029.7,0.8125]
[1731171401383,0.7742,3030.6,3030.2,1.26894334]
[1731171401777,0.06247816,3030.5,3030.2,1.26894334]
[1731171402647,0.7742,3030.6,3030.2,1.26894334]
[1731171409763,0.06247686,3030.5,3030.2,1.26894334]
[1731171413291,0.7742,3030.6,3030.2,1.26894334]
[1731171414715,0.06247686,3030.5,3030.2,1.26894334]
[1731171414881,0.7742,3030.6,3030.2,1.26894334]
[1731171420322,0.06247686,3030.5,3030.2,1.26894334]
[1731171422424,0.7742,3030.6,3030.2,1.26894334]
[1731171426730,0.7742,3030.6,3030.1,1.26894334]
[1731171432643,0.7742,3030.6,3030.2,0.06599509]
[1731171432798,0.7734,3031.2,3030.4,1.26894334]
[1731171433007,0.06247699,3030.5,3030.4,1.26894334]
[1731171433312,0.7734,3031.2,3030.4,1.26894334]
[1731171433699,0.3711117,3031.1,3030.4,1.26894334]
[1731171434018,0.06292003,3031.1,3030.4,1.26894334]
[1731171435110,0.7734,3031.0,3030.4,1.26894334]
[1731171435475,0.06277237,3030.9,3030.2,1.26894334]
[1731171435645,0.7734,3030.8,3030.0,0.65394088]
[1731171435802,0.7734,3030.8,3030.1,1.26894334]
[1731171436135,0.7734,3030.6,3030.1,1.26894334]
[1731171436640,0.06247796,3030.5,3030.1,1.26894334]
[1731171437970,0.06247796,3030.5,3029.9,0.55]
[1731171438242,0.06247796,3030.5,3030.1,1.26894334]
[1731171439341,0.7734,3030.6,3030.1,1.26894334]
[1731171441556,0.7734,3030.6,3029.9,0.55]
[1731171441753,0.7734,3030.6,3030.1,1.26894334]
[1731171444968,0.7734,3030.6,3029.9,0.55]
[1731171445281,0.06247796,3030.5,3030.1,1.26894334]
[1731171445637,0.7734,3030.6,3030.1,1.26894334]
[1731171451181,0.7881,3031.1,3030.5,1.26894334]
[1731171451779,0.06284624,3031.0,3030.5,1.26894334]
[1731171455302,0.7881,3030.9,3030.0,0.7855]
[1731171455609,0.7881,3030.7,3030.1,1.26894334]
[1731171455968,0.06255088,3030.6,3030.1,1.26894334]
[1731171456168,0.7881,3030.7,3030.1,1.26894334]
[1731171456371,0.06247702,3030.5,3030.1,1.26894334]
[1731171456571,0.7881,3030.7,3030.1,1.26894334]
[1731171456791,0.06240317,3030.4,3030.1,1.26894334]
[1731171456956,0.7881,3030.7,3030.1,1.26894334]
[1731171457300,0.0623293,3030.3,3030.1,1.26894334]
[1731171457500,0.7881,3030.7,3030.1,1.26894334]
[1731171457856,0.7881,3030.5,3029.9,1.61272138]
[1731171458357,0.06240296,3030.4,3029.8,1.91919542]
[1731171458562,0.7881,3030.3,3029.8,1.91919542]
[1731171458789,0.8504291,3030.3,3029.8,1.91919542]
[1731171459096,0.8504291,3030.3,3029.8,0.65025208]
[1731171459299,0.8504291,3030.3,3029.8,1.91919542]
[1731171461917,0.8504291,3030.3,3030.0,1.26894334]
[1731171465539,0.8504291,3030.3,3029.8,1.26894334]
[1731171480209,0.8504291,3030.3,3029.4,0.55]
[1731171480404,0.8504291,3030.3,3029.4,1.20075992]
[1731171480607,0.8504291,3030.3,3029.5,1.26894334]
[1731171484579,0.8504291,3030.3,3028.8,0.55]
[1731171484871,0.8504291,3030.3,3029.3,1.26894334]
[1731171486057,0.30764532,3030.2,3029.3,1.26894334]
[1731171486258,0.7881,3030.1,3029.3,1.26894334]
[1731171486462,0.84823132,3030.1,3029.3,1.26894334]
[1731171488668,0.84823132,3030.1,3028.9,1.26894334]
[1731171488840,0.84823132,3030.1,3028.9,1.92341993]
[1731171488841,0.763,3029.9,3028.9,1.92341993]
[1731171489047,0.763,3029.9,3029.1,1.26894334]
[1731171489275,0.05990968,3029.8,3029.1,1.26894334]
[1731171489471,0.763,3029.7,3029.1,1.26894334]
[1731171489672,0.82283578,3029.7,3029.1,1.26894334]
[1731171490471,0.763,3029.7,3029.1,1.26894334]
[1731171492854,0.05975862,3029.6,3029.1,1.26894334]
[1731171493045,0.05975862,3029.6,3029.5,1.26894334]
[1731171494140,0.05975862,3029.6,3029.3,1.81894334]
[1731171494337,0.05975862,3029.6,3028.5,1.61232149]
[1731171494338,0.763,3029.5,3028.5,0.34337815]
[1731171494533,0.763,3029.5,3028.2,0.7903]
[1731171494738,0.763,3029.3,3028.1,1.26894334]
[1731171495172,0.763,3029.1,3028.2,0.65896944]
[1731171495683,0.763,3028.9,3028.3,1.26894334]
[1731171496040,0.05916554,3028.8,3028.3,1.26894334]
[1731171497476,0.763,3028.9,3028.3,1.26894334]
[1731171497780,0.05908927,3028.7,3028.3,1.26894334]
[1731171497978,0.05916321,3028.8,3028.3,1.26894334]
[1731171498166,0.763,3028.9,3028.3,1.26894334]
[1731171498553,0.05916321,3028.8,3028.3,1.26894334]
[1731171498875,0.763,3028.9,3028.3,1.26894334]
[1731171499077,0.05908927,3028.7,3028.5,1.26894334]
[1731171499375,0.05908927,3028.7,3028.6,0.06603009]
[1731171499748,0.763,3028.9,3028.6,0.06603009]
[1731171499949,0.763,3029.2,3028.6,1.88497343]
[1731171500182,0.763,3029.2,3028.7,0.55]
[1731171500478,0.05938214,3029.1,3028.7,0.55]
[1731171501043,0.05938214,3029.1,3028.8,0.06602435]
[1731171501884,0.05938214,3029.1,3028.8,1.33496769]
[1731171502085,0.05938214,3029.1,3028.8,1.26894334]
[1731171502248,0.763,3029.2,3028.8,1.26894334]
[1731171504147,0.763,3029.2,3028.6,1.81894334]
[1731171504577,0.05938388,3029.1,3028.6,1.81894334]
[1731171504849,0.763,3029.2,3028.6,1.81894334]
[1731171511401,0.713,3029.2,3028.6,1.81894334]
[1731171513916,0.713,3029.2,3028.6,0.55]
[1731171514992,0.713,3029.2,3028.4,1.26894334]
[1731171515302,0.05938427,3029.1,3028.5,0.06603165]
[1731171515615,0.8174,3029.0,3028.5,0.06603165]
[1731171516012,0.87671034,3029.0,3028.5,0.06603165]
[1731171516375,0.87671034,3029.0,3028.5,0.06603164]
[1731171518699,0.87671034,3029.0,3028.4,1.26894334]
[1731171529203,0.87671034,3029.0,3028.3,0.55]
[1731171537635,0.87671034,3029.0,3028.2,0.34375611]
[1731171537837,0.87671034,3029.0,3027.5,0.8119]
[1731171537838,0.87671034,3029.0,3027.8,1.26894334]
[1731171538207,0.7966,3028.8,3027.8,1.26894334]
[1731171538401,0.05908744,3028.7,3027.8,1.26894334]
[1731171538602,0.7966,3028.6,3028.0,0.66698342]
[1731171538834,0.05893954,3028.5,3028.0,0.66698342]
[1731171539036,0.7966,3028.5,3028.0,0.66698342]
[1731171539222,1.26894334,3029.1,3028.0,0.66698342]
[1731171539223,0.05886559,3028.4,3028.0,0.66698342]
[1731171539416,0.7966,3028.3,3028.0,0.66698342]
[1731171539815,0.05871766,3028.2,3028.0,0.66698342]
[1731171540014,0.7966,3028.3,3028.0,0.66698342]
[1731171540239,0.05871766,3028.2,3028.0,0.66698342]
[1731171540414,0.7966,3028.3,3028.0,0.66698342]
[1731171540610,0.05871766,3028.2,3027.8,0.55]
[1731171540938,0.7966,3028.3,3027.8,0.55]
[1731171541142,0.7966,3028.3,3027.9,0.66566358]
[1731171541441,0.05871766,3028.2,3027.9,0.66566358]
[1731171541624,0.7966,3028.3,3027.9,0.66566358]
[1731171541806,0.05864369,3028.1,3027.9,0.66566358]
[1731171542009,0.7966,3028.3,3027.9,0.66566358]
[1731171542316,0.05871766,3028.2,3027.9,0.66566358]
[1731171542517,0.7966,3028.3,3027.9,0.66566358]
[1731171543020,0.05871766,3028.2,3027.9,0.66566358]
[1731171543341,0.7966,3028.3,3027.8,0.55]
[1731171543633,0.05871766,3028.2,3027.8,0.55]
[1731171543813,0.7966,3028.3,3027.8,0.55]
[1731171544136,0.05871766,3028.2,3027.8,0.55]
[1731171544322,0.05871766,3028.2,3027.8,1.20239914]
[1731171544535,0.7966,3028.3,3027.8,1.20239914]
[1731171544718,0.7966,3028.3,3027.8,0.65239914]
[1731171544917,0.05871766,3028.2,3027.8,0.65239914]
[1731171545151,0.7966,3028.3,3027.8,0.65239914]
[1731171545534,0.05871766,3028.2,3027.8,0.65239914]
[1731171545844,0.7966,3028.3,3027.8,0.65239914]
[1731171546034,0.05864369,3028.1,3027.8,0.65239914]
[1731171546234,0.7966,3028.3,3027.8,0.65239914]
[1731171546444,0.05856972,3028.0,3027.8,0.65239914]
[1731171546650,0.7966,3028.3,3027.8,0.65239914]
[1731171546859,0.05849574,3027.9,3027.8,0.65239914]
[1731171547023,0.7966,3028.3,3027.8,0.65239914]
[1731171547343,0.05871766,3028.2,3027.8,0.65239914]
[1731171547750,0.7966,3028.3,3027.8,0.65239914]
[1731171548106,0.05753905,3028.2,3027.7,1.26894334]
[1731171548305,0.7966,3028.3,3027.7,1.26894334]
[1731171548513,0.05746291,3028.1,3027.7,1.26894334]
[1731171548846,0.7966,3028.3,3027.7,1.26894334]
[1731171549151,4.26894334,3028.9,3027.6,0.34321038]
[1731171549152,0.7774,3027.9,3027.6,0.34321038]
[1731171549807,0.7774,3027.9,3027.7,0.65752085]
[1731171554050,0.7774,3027.9,3027.4,0.55]
[1731171555546,0.05723762,3027.8,3027.4,0.55]
[1731171556317,0.05723762,3027.8,3027.5,0.65459825]
[1731171560364,0.7774,3027.9,3027.5,0.65459825]
[1731171561217,0.7774,3027.9,3027.5,1.92354159]
[1731171564051,0.7774,3027.9,3027.5,1.26894334]
[1731171567972,0.7774,3027.9,3027.6,0.06605119]
[1731171568169,0.7774,3027.9,3027.5,1.26894334]
[1731171568938,0.7774,3027.9,3027.6,0.0660506]
[1731171572237,0.7774,3027.9,3027.5,1.26894334]
[1731171584777,0.7774,3027.9,3027.4,1.21385219]
[1731171590318,0.05723377,3027.8,3027.4,1.21385219]
[1731171590478,0.7774,3027.9,3027.4,1.21385219]
[1731171590678,0.05715978,3027.7,3027.4,1.21385219]
[1731171590879,0.7774,3027.9,3027.4,1.21385219]
[1731171591095,0.05708578,3027.6,3027.4,1.21385219]
[1731171591295,0.7774,3027.9,3027.4,1.21385219]
[1731171591490,0.05701178,3027.5,3027.4,1.21385219]
[1731171591720,0.7774,3027.9,3027.4,1.27990359]
[1731171591884,3.0,3028.6,3027.7,1.26894334]
[1731171591885,0.7837,3028.6,3027.7,1.26894334]
[1731171592220,0.7837,3028.4,3027.8,0.61604437]
[1731171592923,0.7837,3028.4,3027.8,0.55]
[1731171598995,0.7837,3028.4,3027.6,0.55]
[1731171601529,1.26894334,3027.8,3027.3,0.343689]
[1731171601726,0.7837,3027.7,3027.2,0.6540486]
[1731171602130,0.7837,3027.6,3027.2,0.6540486]
[1731171602335,0.7837,3027.6,3026.6,0.34356113]
[1731171602496,0.7837,3027.4,3026.4,1.26894334]
[1731171602691,0.7837,3027.4,3026.4,1.91507128]
[1731171603027,0.7837,3027.4,3026.3,0.758]
[1731171603028,0.7837,3027.4,3026.3,2.02694334]
[1731171603239,0.7837,3027.4,3026.3,0.758]
[1731171603724,0.7837,3027.4,3026.3,2.02694334]
[1731171604025,0.7837,3027.2,3026.4,0.55]
[1731171605212,0.7837,3027.7,3027.1,1.26894334]
[1731171605418,0.7837,3028.3,3027.3,0.758]
[1731171605605,0.7837,3028.3,3027.6,0.55]
[1731171606849,1.0,3029.0,3028.2,1.26894334]
[1731171607061,1.0,3029.0,3028.5,1.26894334]
[1731171607365,1.0,3029.0,3028.6,0.55]
[1731171607521,1.0,3029.0,3028.8,0.55]
[1731171607837,1.0,3029.0,3028.9,1.81894334]
[1731171609353,1.0,3029.0,3028.6,0.55]
[1731171611920,1.0,3029.0,3028.4,0.55]
[1731171612558,1.8126,3029.0,3028.4,0.55]
[1731171612858,1.99386,3029.0,3027.9,0.764]
[1731171614469,1.99386,3029.0,3028.0,0.55]
[1731171614779,0.8126,3028.9,3027.8,0.64526345]
[1731171615171,0.8126,3028.9,3027.6,0.764]
[1731171616469,0.8126,3028.9,3027.7,0.55]
[1731171617684,0.04318069,3028.8,3027.5,0.55]
[1731171617844,0.8126,3028.7,3027.5,0.55]
[1731171618354,0.04303204,3028.6,3027.5,0.55]
[1731171618768,0.04303204,3028.6,3027.5,3.30235083]
[1731171618969,0.04303204,3028.6,3027.8,2.75235083]
[1731171619157,0.04303204,3028.6,3027.9,1.41694214]
[1731171620644,0.04303204,3028.6,3028.3,0.55]
[1731171620970,0.8022,3029.3,3028.5,3.30235083]
[1731171621174,0.8022,3029.3,3028.7,0.55]
[1731171621374,0.04347533,3029.2,3028.8,0.06602288]
[1731171621570,0.8022,3029.3,3028.6,0.55]
[1731171624479,0.8022,3029.3,3028.8,0.55]
[1731171624676,0.8022,3029.3,3028.7,0.06602295]
[1731171625504,0.8022,3029.3,3028.6,0.55]
[1731171625880,0.8022,3029.3,3028.7,0.06602515]
[1731171626382,0.8022,3029.3,3028.4,0.55]
[1731171626587,0.04347533,3029.2,3028.6,0.55]
[1731171626968,0.8022,3029.3,3028.7,0.06602511]
[1731171627367,0.04348012,3029.2,3028.8,0.55]
[1731171627767,0.8022,3029.3,3028.8,0.55]
[1731171628166,0.04348012,3029.2,3028.8,0.55]
[1731171628498,0.8022,3029.8,3028.8,0.55]
[1731171628691,0.04385128,3029.7,3028.6,0.55]
[1731171630208,0.04385128,3029.7,3028.9,1.3548]
[1731171630363,0.04385128,3029.7,3028.9,4.3548]
[1731171630568,0.04385128,3029.7,3029.1,3.30235083]
[1731171630796,0.8022,3029.8,3029.3,0.55]
[1731171631229,0.8022,3029.8,3029.0,0.55]
[1731171631416,0.8022,3029.8,3028.7,0.55]
[1731171631623,0.04356895,3029.7,3029.0,0.55]
[1731171632017,0.8022,3029.8,3029.0,0.55]
[1731171632323,0.86286889,3029.7,3028.7,0.55]
[1731171632538,0.8193,3029.7,3028.7,0.55]
[1731171633021,0.8193,3029.7,3028.4,0.55]
[1731171633342,0.04303172,3029.6,3028.4,0.55]
[1731171633483,0.04303172,3029.6,3028.0,1.3098]
[1731171633484,0.8193,3029.5,3028.0,1.3098]
[1731171633686,0.86218386,3029.4,3028.0,0.505]
[1731171633924,0.8193,3029.2,3028.0,0.505]
[1731171634126,0.86196211,3029.1,3028.0,0.505]
[1731171638549,3.0,3028.9,3028.0,0.505]
[1731171638850,0.8193,3028.7,3028.0,0.505]
[1731171639393,0.8615874,3028.6,3028.0,0.505]
[1731171639740,0.38615874,3028.5,3028.0,0.505]
[1731171639941,0.86143949,3028.4,3028.0,0.505]
[1731171648259,0.86143949,3028.4,3028.2,0.505]
[1731171656111,0.8193,3028.4,3028.2,0.505]
[1731171657482,0.0418673,3028.3,3028.2,0.505]
[1731171657684,0.7922673,3028.3,3028.2,0.505]
[1731171657924,0.7504,3028.3,3028.2,0.505]
[1731171658230,0.79226694,3028.3,3028.2,0.505]
[1731171662335,1.09963196,3028.3,3028.2,0.505]
[1731171662483,1.50959516,3028.3,3028.2,0.505]
[1731171667625,4.50959516,3028.3,3028.2,0.505]
[1731171669142,16.57223014,3028.3,3028.2,0.505]
[1731171669319,16.87964173,3028.3,3028.2,0.505]
[1731171669740,16.86964173,3028.3,3028.2,0.505]
[1731171670622,16.56223014,3028.3,3028.2,0.505]
[1731171670838,16.86956278,3028.3,3028.2,0.505]
[1731171673536,16.87956278,3028.3,3028.2,0.505]
[1731171676143,16.87938429,3028.3,3028.2,0.505]
[1731171676825,17.18226066,3028.3,3028.2,0.505]
[1731171678035,17.86915758,3028.3,3028.2,0.505]
[1731171678235,17.18226066,3028.3,3028.2,0.505]
[1731171678466,17.86915758,3028.3,3028.2,0.505]